Cogmind - Beta 10.2 @@@ ROGUE MODE // 2021.02.24 @ 23:37:49 // Halloween2020/ForbiddenLore Player: eldritch Result: Self-destructed Performance ------------- Evolutions (0) 0 Regions Visited (4) 800 Robots Destroyed (14) 70 Value Destroyed (274) 274 Prototype IDs (23) 460 Alien Tech Used (0) 0 Bonus (300) 300 TOTAL SCORE: 1904 Bonus ------- Aligned with FarCom 300 Cogmind --------- Core Integrity 122/250 Matter 299/300 Energy 33/125 System Corruption 0% Temperature Cool (158) Movement Walking (150) Ox1 Location -9/Mines Parts ------- > --- POWER (1) -------- Light Ion Engine > --- PROPULSION (2) --- Aluminum Leg Aluminum Leg > --- UTILITY (2) ------ Large Storage Unit > --- WEAPON (2) ------- Light EM Pulse Cannon Light Assault Rifle > --- INVENTORY (10) --- Ion Engine Light Nuclear Core Aluminum Leg Large Storage Unit PSU Rigger Light EM Pulse Cannon Assault Rifle Light Assault Rifle EMP Trap EMP Trap Peak State ------------ > --- POWER ------------ Light Ion Engine > --- PROPULSION ------- Aluminum Leg Aluminum Leg > --- UTILITY ---------- Large Storage Unit Terrain Scanner > --- WEAPON ----------- Light EM Pulse Cannon Light Assault Rifle > --- INVENTORY -------- Ion Engine Light Nuclear Core Aluminum Leg Large Storage Unit PSU Rigger Light EM Pulse Cannon Assault Rifle Light Assault Rifle EMP Trap EMP Trap [Rating: 10] Favorites ----------- Power Light Ion Engine Engine Light Ion Engine Propulsion Aluminum Leg Leg Aluminum Leg Utility Terrain Scanner Device Terrain Scanner Storage Large Storage Unit Weapon Light Assault Rifle Energy Gun EM Pulse Gun Energy Cannon Light EM Pulse Cannon Ballistic Gun Light Assault Rifle Build | -11 -10 -10 -10 -9 ------- Run | Scr Mat Min Exi Min Slots Evolved . | . . . . . Power . | . . . . . Propulsion . | . . . . . Utility . | . . . . . Weapon . | . . . . . Parts Attached 12 | . 4 8 . . Power 1 | . . 1 . . Engine 1 | . . 1 . . Core . | . . . . . Reactor . | . . . . . Propulsion 5 | . 1 4 . . Treads . | . . . . . Leg 5 | . 1 4 . . Wheel . | . . . . . Hover . | . . . . . Flight . | . . . . . Utility 2 | . 2 . . . Device 1 | . 1 . . . Storage 1 | . 1 . . . Processor . | . . . . . Hackware . | . . . . . Protection . | . . . . . Artifact . | . . . . . Weapon 4 | . 1 3 . . Energy Gun . | . . . . . Energy Cannon 1 | . . 1 . . Ballistic Gun 3 | . 1 2 . . Ballistic Cannon . | . . . . . Launcher . | . . . . . Special Weapon . | . . . . . Impact Weapon . | . . . . . Slashing Weapon . | . . . . . Piercing Weapon . | . . . . . Special Melee Weapon . | . . . . . Unidentified Prototypes . | . . . . . Parts Lost 3 | . . 2 . 1 Power . | . . . . . Propulsion 1 | . . 1 . . Utility 1 | . . . . 1 Weapon 1 | . . 1 . . Highest Loss Streak 1 | . . 1 . 1 Average Slot Usage (%) 98 | . 87 99 100 100 Engine 14 | . 14 14 14 14 Leg 28 | . 28 28 28 28 Device 12 | . 2 14 14 14 Storage 14 | . 14 14 14 14 Energy Gun 8 | . 14 11 . . Energy Cannon 5 | . . 1 14 14 Ballistic Gun 14 | . 14 14 14 14 Naked Turns . | . . . . . Heaviest Build 25 | 10 24 25 25 25 Greatest Support 20 | 20 20 20 20 20 Greatest Overweight (x) 1 | . 1 1 1 1 Average Overweight (x) . | . . 1 1 1 Largest Inventory Capacity 10 | . 10 10 10 10 Average Capacity 9 | . 6 10 10 10 Most Carried 10 | . 7 10 10 10 Average Carried 9 | . 5 9 9 10 Final Capacity 10 | 6 10 10 10 10 Final Carried 10 | 6 7 10 10 10 Class Distribution -------------------- 93% | Mutant 6% | Skirmisher Dominant Class ---------------- Mutant | -10/Materials Mutant | -10/Mines Mutant | -10/Exiles Skirmisher | -9/Mines Resources | -11 -10 -10 -10 -9 ----------- Run | Scr Mat Min Exi Min Matter Collected 384 | 200 32 152 . . Remotely . | . . . . . Salvage Created 468 | . 130 278 . 60 Parts 31 | . 7 21 . 3 Haulers Intercepted 1 | . 1 . . . Recyclers Shooed . | . . . . . Parts Field Recycled . | . . . . . Retrieved Matter . | . . . . . Parts Self-Destructed . | . . . . . Prevented . | . . . . . Kills | -11 -10 -10 -10 -9 ------- Run | Scr Mat Min Exi Min Combat Hostiles Destroyed 9 | . 2 6 . 1 Guns 7 | . . 6 . 1 AOE 2 | . 2 . . . Classes Destroyed 6 | . 2 3 . 1 Worker 3 | . . 3 . . Tunneler 1 | . . 1 . . Hauler 1 | . 1 . . . Swarmer 3 | . . 3 . . Grunt 5 | . 2 3 . . Brawler 1 | . . . . 1 Best Kill Streak 3 | . 2 3 . 1 Combat Bots Only 3 | . 2 3 . 1 Max Kills in Single Turn 2 | . 2 1 . 1 Gunslinging . | . . . . . Exploded 2 | . 2 . . . Melee . | . . . . . Uniques/NPCs Destroyed . | . . . . . Combat | -11 -10 -10 -10 -9 -------- Run | Scr Mat Min Exi Min Damage Taken 642 | . 121 417 . 104 Core 128 | . . 102 . 26 Absorbed by Shields . | . . . . . Core Remaining (%) 100 | 100 . . . . Volleys Fired 41 | . 7 28 . 6 Largest 2 | . 2 2 . 2 Hottest 76 | . 60 60 . 76 Shots Fired 80 | . 14 54 . 12 Gun 74 | . 14 54 . 6 Cannon 6 | . . . . 6 Launcher . | . . . . . Special . | . . . . . Kinetic 41 | . 7 28 . 6 Thermal . | . . . . . Explosive . | . . . . . Electromagnetic 39 | . 7 26 . 6 Robot Hit Streak 8 | . 6 7 . 8 Robot Miss Streak 3 | . 1 3 . 2 Penetration Max . | . . . . . Secondary Targets 2 | . . 2 . . Max Gunslinging Chain 1 | . . 1 . . Shots Hit Robots 52 | . 11 31 . 10 Core Hits 22 | . 5 14 . 3 Critical Hits 1 | . . 1 . . Critical Kills 1 | . . 1 . . Critical Parts Destroyed . | . . . . . Melee Attacks . | . . . . . Impact . | . . . . . Slashing . | . . . . . Piercing . | . . . . . Sneak Attacks . | . . . . . Combat Hostiles . | . . . . . Follow-up Attacks . | . . . . . Damage Inflicted 788 | . 228 406 . 154 Guns 516 | . 112 351 . 53 Cannons 101 | . . . . 101 Explosions 171 | . 116 55 . . Melee . | . . . . . Ramming . | . . . . . Kinetic 179 | . 36 90 . 53 Thermal 171 | . 116 55 . . Explosive . | . . . . . Electromagnetic 438 | . 76 261 . 101 Impact . | . . . . . Slashing . | . . . . . Piercing . | . . . . . Highest Corruption . | . . . . . Average Corruption . | . . . . . Corruption Purged . | . . . . . Overload Shots . | . . . . . Overflow Damage . | . . . . . Projectiles . | . . . . . Explosions . | . . . . . Melee . | . . . . . Knockbacks . | . . . . . Impact . | . . . . . Kinetic . | . . . . . Secondary . | . . . . . Self-Inflicted Damage 39 | . 39 . . . Shots 1 | . 1 . . . Rammed . | . . . . . Targets Rammed . | . . . . . Kicked . | . . . . . Crushed . | . . . . . Highest Temperature 172 | . 36 102 . 172 Average Temperature 48 | . 19 42 . 94 Received Heat Transfer 270 | . 30 192 . 48 Siege Activations . | . . . . . Robots Corrupted . | . . . . . Combat Hostiles . | . . . . . Parts Fried . | . . . . . Impact Corruptions . | . . . . . Robots Melted . | . . . . . Combat Hostiles . | . . . . . Parts Melted . | . . . . . Heat Transferred 100 | . 50 50 . . Parts Sabotaged . | . . . . . Parts Stolen . | . . . . . Parts Stripped . | . . . . . Power Chain Reactions 2 | . 1 1 . . Missiles Intercepted . | . . . . . Alert | -11 -10 -10 -10 -9 ------- Run | Scr Mat Min Exi Min Peak Influence 90 | . 62 90 . 30 Initial 24 | . . 24 . . Average 43 | . 32 51 . 1 Maximum Alert Level . | . . . . . Low Security (%) 100 | . 100 100 . 100 Level 1 . | . . . . . Level 2 . | . . . . . Level 3 . | . . . . . Level 4 . | . . . . . Level 5 . | . . . . . High Security . | . . . . . Max Security . | . . . . . Squads Dispatched . | . . . . . Investigation . | . . . . . Extermination . | . . . . . Reinforcement . | . . . . . Assault . | . . . . . Garrison . | . . . . . Intercept . | . . . . . Construction Impeded . | . . . . . Haulers Reinforced . | . . . . . Stealth | -11 -10 -10 -10 -9 --------- Run | Scr Mat Min Exi Min Distress Signals 1 | . 1 . . . Communications Jammed . | . . . . . Distress Signals . | . . . . . Times Spotted 15 | . 6 7 . 2 Peak Tracking Total 5 | . 5 3 . 2 Tactical Retreats . | . . . . . Traps | -11 -10 -10 -10 -9 ------- Run | Scr Mat Min Exi Min Traps Triggered . | . . . . . Indirectly . | . . . . . Trap Hack Attempts . | . . . . . Triggered . | . . . . . Disarmed . | . . . . . Reprogrammed . | . . . . . Reused . | . . . . . Traps Extracted . | . . . . . Installed . | . . . . . Triggered . | . . . . . Machines | -11 -10 -10 -10 -9 ---------- Run | Scr Mat Min Exi Min Machines Disabled . | . . . . . Max in Single Turn . | . . . . . Machines Sabotaged . | . . . . . Garrisons Compromised . | . . . . . Overloaded Fab Kills . | . . . . . Fab Network Shutdowns . | . . . . . Hacking | -11 -10 -10 -10 -9 --------- Run | Scr Mat Min Exi Min Machines Accessed 4 | . 2 . 2 . Terminals 2 | . 2 . . . Fabricators . | . . . . . Repair Stations . | . . . . . Recycling Units . | . . . . . Scanalyzers . | . . . . . Garrison Access . | . . . . . Total Hacks 10 | . 4 . 6 . Successful 6 | . . . 6 . Failed 4 | . 4 . . . Catastrophic 1 | . 1 . . . Database Lockouts . | . . . . . Manual 2 | . 1 . 1 . Terminals 4 | . 4 . . . Fabricators . | . . . . . Repair Stations . | . . . . . Recycling Units . | . . . . . Scanalyzers . | . . . . . Garrison Access . | . . . . . Terminal Hacks 6 | . . . 6 . Record 5 | . . . 5 . EX-Prototype ID Bank 1 | . . . 1 . Fabricator Hacks . | . . . . . Repair Station Hacks . | . . . . . Recycling Unit Hacks . | . . . . . Scanalyzer . | . . . . . Garrison Access Hacks . | . . . . . Unauthorized Hacks . | . . . . . Terminals . | . . . . . Fabricators . | . . . . . Repair Stations . | . . . . . Recycling Units . | . . . . . Scanalyzers . | . . . . . Garrison Access . | . . . . . Data Cores Recovered . | . . . . . Used . | . . . . . Hacking Detections 2 | . 2 . . . Full Trace Events . | . . . . . Feedback Events . | . . . . . Feedback Blocked . | . . . . . Robot Schematics Acquired . | . . . . . Robots Built . | . . . . . Matter . | . . . . . Time . | . . . . . Total Robot Build Rating . | . . . . . Part Schematics Acquired . | . . . . . Parts Built . | . . . . . Matter . | . . . . . Time . | . . . . . Total Part Build Rating . | . . . . . Parts Repaired . | . . . . . Time . | . . . . . Parts Recycled . | . . . . . Recycled Matter . | . . . . . Retrieved Matter . | . . . . . Retrieved Components . | . . . . . Parts Scanalyzed . | . . . . . Part Schematics Acquired . | . . . . . Parts Damaged . | . . . . . Bothacking | -11 -10 -10 -10 -9 ------------ Run | Scr Mat Min Exi Min Used RIF Installer . | . . . . . Robots Hacked . | . . . . . Non-combat . | . . . . . Combat . | . . . . . Robot Hacks Applied . | . . . . . Relay Couplers Released . | . . . . . Robots Rewired . | . . . . . Allies Hacked . | . . . . . Hacks Repelled . | . . . . . Allies | -11 -10 -10 -10 -9 -------- Run | Scr Mat Min Exi Min Total Allies . | . . . . . Largest Group . | . . . . . Highest-Rated Group . | . . . . . Highest-Rated Ally . | . . . . . Total Orders . | . . . . . Ally Attacks . | . . . . . Total Damage . | . . . . . Kills . | . . . . . Allies Corrupted . | . . . . . Allies Melted . | . . . . . Intel | -11 -10 -10 -10 -9 ------- Run | Scr Mat Min Exi Min Robot Analysis Total . | . . . . . Derelict Logs Recovered 2 | . . 2 . . Drone Launches . | . . . . . Drone Recoveries . | . . . . . Exploration | -11 -10 -10 -10 -9 ------------- Run | Scr Mat Min Exi Min Turns Passed 1540 | . 230 793 426 91 Spaces Moved 948 | 1 155 459 284 49 Core . | . . . . . Treads . | . . . . . Legs 948 | 1 155 459 284 49 Wheels . | . . . . . Hover . | . . . . . Flight . | . . . . . Fastest Speed 120 | 120 120 150 150 150 Average Speed 145 | 120 122 150 150 150 Slowest Speed 150 | 120 150 150 150 150 Overloaded Moves . | . . . . . Propulsion Burnouts . | . . . . . Robots Hopped . | . . . . . Cave-ins Triggered . | . . . . . Exploration Rate (%) 43 | 2 34 89 70 23 Regions Visited 4 Branch Regions 3 Pre-discovered Areas 2 | . . 1 1 . Known Exits Taken . | . . . . . Unknown Exits Taken 4 | 1 1 1 1 . Scrap Searched 1 | . . 1 . . Spaces Dug . | . . . . . Terrain Destroyed 9 | . 4 5 . . Melee . | . . . . . Projectile . | . . . . . AOE 9 | . 4 5 . . Terrain Rammed . | . . . . . Walls Destroyed . | . . . . . Machines Disabled . | . . . . . Actions | -11 -10 -10 -10 -9 --------- Run | Scr Mat Min Exi Min Total 1038 | . 185 513 285 55 Wait 20 | . 8 12 . . Move 944 | . 154 458 283 49 Hop . | . . . . . Pick Up 9 | . 5 3 1 . Fast Attach 1 | . 1 . . . Attach 2 | . . 2 . . Detach . | . . . . . Swap 9 | . 3 6 . . Drop 12 | . 7 4 1 . Fire 41 | . 7 28 . 6 Melee . | . . . . . Ram . | . . . . . Kick . | . . . . . Crush . | . . . . . Escape Stasis . | . . . . . Rewire . | . . . . . Trap . | . . . . . Miscellaneous . | . . . . . Route ------- -11/Scrapyard -10/Materials -10/Mines (discovered 2 exits: [*Mat] / *Exi) -10/Exiles -9/Mines History --------- Turn | Location | Event 1 | -11/Scrapyard | Discovered new exit (range 0) 1 | -11/Scrapyard | Entered Materials 147 | -10/Materials | Discovered new exit (range 16) 231 | -10/Materials | Entered Mines 308 | -10/Mines | Build established: Mutant 497 | -10/Mines | Learned Materials terminal intel 540 | -10/Mines | Found a hidden stash of uninstalled traps 657 | -10/Mines | Deemed a non-threat by the Exiles lab entrance 657 | -10/Mines | Discovered new exit (range 5) 693 | -10/Mines | Discovered new exit (range 9) 824 | -10/Mines | Learned location of Zion (-6) 1024 | -10/Mines | Entered Exiles 1059 | -10/Exiles | Met 8R-AWN 1086 | -10/Exiles | Met EX-HEX 1165 | -10/Exiles | Met EX-DEC 1225 | -10/Exiles | Met EX-BIN 1246 | -10/Exiles | Aligned with FarCom system 1248 | -10/Exiles | Given EX-Vault access code 1285 | -10/Exiles | Opened EX-Vault 1301 | -10/Exiles | Found PSU Rigger 1335 | -10/Exiles | Warned to stay clear of 0b10 Research branches 1437 | -10/Exiles | Discovered new exit (range 10) 1450 | -10/Exiles | Left Exiles lab with PSU Rigger 1450 | -10/Exiles | Entered Mines 1536 | -9/Mines | Core integrity fell below 50% 1541 | -9/Mines | Self-destructed Last Messages --------------- EX-BIN: And don't even think about spreading that code around. We're gonna change it right after you leave. Most certainly not to something like 1234 which I did last time as a little joke and some thief managed to sneak in here and steal a few of HEX's prototypes. 01437_ EXIT=FOUND LOCATION=UNKNOWN GOAL=ESCAPE 01450_ Receiving FarCom transmissions... 01499_ K-01 Serf collects debris. 01520_ C-30 ARC bursts open, deploying its payload. 01520_ B-36 Bruiser unfolds itself. 01520_ G-34 Mercenary unfolds itself. 01525_ K-01 Serf collects debris. 01535_ B-36 Bruiser destroyed. 01535_ R-06 Scavenger collects Hammer. 01536_ K-01 Serf collects debris. 01538_ U-05 Engineer lays Concrete. 01539_ K-01 Serf collects debris. 01539_ R-06 Scavenger collects Rnf. Ion Engine. 01540_ Terrain Scanner destroyed. Map ----- +----------------------------------------------------+ | ???????###### #???????????????????????????? | | ?????????#### #### #???????????????????????????? | | ???? ???## #??????#???????????????????????????? | | ????????# #??????????????????????????????????? | | ?????#?## ###????????????????????????????????? | | ???????# #????????????????????????????????? | | ??????# # #???????#????????????????????????? | | ?????# ## ## #????????????????????????????????? | | ?? #?# #?# #????????????????????????????????? | | #??# ### #??#?????????????????????????????? | | #####???# #????????????????????????????????? | | ???????#?###### #????????????????????????????????? | | ??????????#???# #?###????????????????????????????? | | ?????????????## ## ##???#???????????????????????? | | ??????????#### #???##??????????????????????? | | ??????????# #???#???????????????????????? | | ????####### """ #???????????????????????????? | | ? """ ##???????????????????????????? | | ????? """ #####???????????????????????????? | | ?????####### #??####?????????????????????????? | | ???????????#### #?## ##????????????????????????? | | ??????????????# ### ##???????????????????????? | | ??????????????#%k #???????????????????????? | | ??????#??????## g r=##??????????????????????? | | ????????# %### #??#????????????????? | | ????????# t r @ #???????????????????? | | ????????# ###### u #???????????????????? | | ????????# ??????## #####???????????????????? | | ?????????????????# #??????????????????????? | | ?????????????????## #?????????????????????? | | ??????????????????# #?????????????????????? | | ?????????????????# ##?????????????????????? | | ???????????????? ##??????????????????????? | | ??????????????? ???????????????????????? | | ?????????????? ??????????????????????? | | ?????????????? ####??????????????????????? | | ?????????????? #?????????????????????????? | | ???????????????? ??????????????????????????? | | ?????????????????? ??????????????????????????? | | ????????????????????? ???????????????????????????? | | ?????????????????????????????????????????????????? | | ?????????????????????????????????????????????????? | | ?????????????????????????????????????????????????? | | ?????????????????????????????????????????????????? | | ?????????????????????????????????????????????????? | | ?????????????????????????????????????????????????? | | ?????????????????????????????????????????????????? | | ?????????????????????????????????????????????????? | | ?????????????????????????????????????????????????? | | ?????????????????????????????????????????????????? | +----------------------------------------------------+ Best States ------------- Heat Dissipation 25 Energy Generation 10 Energy Capacity 125 Matter Stores 300 Matter Capacity 300 Sight Range 16 Terrain Scan Range 14 Terrain Scan Density 10 Evasion (%) 40 Item Schematics ----------------- None Robot Schematics ------------------ None Fabricated ------------ Nothing Alien Tech Used ----------------- None Achievements -------------- None Challenges ------------ None Game ------ Seed PortableThiefHumpback Manual? 0 Play Time 00:08:41 Cumulative 235.3 hours Start 2021.02.24 @ 23:29:36 End 2021.02.24 @ 23:37:49 Sessions 1 Manual Loads 0 Difficulty Rogue Special Mode Halloween2020/ForbiddenLore Game No. 534 Rogue 534 Adventurer 0 Explorer 0 Win Type - Total 4 Types 3/0/0/1/0/0/0/0/0 Lore% 63 Gallery% 66 Achievement% 56 Wizard Run 0 Options --------- ASCII 0 Keyboard 0 Movement Numpad Keybinds 0 Fullscreen 1 Font 16/SmallcapsGlow Map View 75x55 Tactical HUD 1 Map Filters NONE Filters NONE Steam 1 RUN: 5585af6a-6d41-4e42-8ba2-c1ddeeccc092